fUST/lending_fUST_20251018
["ID","MTS","AMOUNT","RATE_DAILY","PERIOD"]
[391757919,1760784641911,-1381.9,0.00024657,2]
[391757920,1760784641921,-500.0,0.00024657,2]
[391757921,1760784641931,-500.0,0.00024657,2]
[391757922,1760784641941,-484.71982659,0.00024657,2]
[391757923,1760784641951,-500.39,0.00024657,2]
[391757924,1760784641960,-500.0,0.00024657,2]
[391757925,1760784641970,-1164.86,0.00024657,2]
[391757926,1760784641979,-500.0,0.00024657,2]
[391757927,1760784641988,-500.0,0.00024657,2]
[391757928,1760784641998,-151.0,0.00024657,7]
[391757929,1760784642010,-510.63274292,0.00024657,2]
[391757930,1760784642020,-151.0,0.00024657,7]
[391757931,1760784642030,-450.4852813,0.00024657,2]
[391757932,1760784642039,-1863.29,0.00024657,2]
[391757933,1760784642049,-255.19188863,0.00024657,2]
[391757934,1760784642059,-500.0,0.00024657,2]
[391757935,1760784642069,-500.0,0.00024657,2]
[391757936,1760784642079,-500.0,0.00024657,2]
[391757937,1760784642088,-504.34,0.00024657,2]
[391757938,1760784642099,-500.0,0.00024657,2]
[391757939,1760784642109,-500.0,0.00024657,2]
[391757940,1760784642118,-500.0,0.00024657,2]
[391757941,1760784642128,-867.51,0.00024657,2]
[391757942,1760784642139,-500.0,0.00024657,2]
[391757943,1760784642148,-500.0,0.00024657,2]
[391757944,1760784642157,-500.0,0.00024657,2]
[391757945,1760784642167,-500.0,0.00024657,2]
[391757946,1760784642178,-151.0,0.00024657,7]
[391757947,1760784642187,-151.0,0.00024657,7]
[391757948,1760784642197,-151.0,0.00024657,7]
[391757949,1760784642206,-151.0,0.00024657,7]
[391757950,1760784642216,-151.0,0.00024657,7]
[391757951,1760784642226,-151.0,0.00024657,7]
[391757952,1760784642237,-151.0,0.00024657,7]
[391757953,1760784642247,-151.0,0.00024657,7]
[391757954,1760784642258,-500.0,0.00024657,2]
[391757955,1760784642268,-151.0,0.00024657,7]
[391757956,1760784642278,-500.0,0.00024657,2]
[391757957,1760784642287,-500.0,0.00024657,2]
[391757958,1760784642298,-430.71764083,0.00024657,2]
[391757959,1760784642307,-500.0,0.00024657,2]
[391757960,1760784642317,-500.0,0.00024657,2]
[391757961,1760784642327,-500.0,0.00024657,2]
[391757962,1760784642337,-500.0,0.00024657,2]
[391757963,1760784642348,-513.39156705,0.00024657,2]
[391757964,1760784642357,-500.0,0.00024657,2]
[391757965,1760784642367,-151.0,0.00024657,7]
[391757966,1760784642378,-301.648661,0.00024657,7]
[391757967,1760784642387,-500.0,0.00024657,2]
[391757968,1760784642398,-500.0,0.00024657,2]
[391757969,1760784642407,-2456.26,0.00024657,2]
[391757970,1760784642416,-151.0,0.00024657,7]
[391757971,1760784642427,-500.0,0.00024657,2]
[391757974,1760784642438,-500.0,0.00024657,2]
[391757976,1760784642448,-1348.77,0.00024657,2]
[391757978,1760784642457,-500.0,0.00024657,2]
[391757979,1760784642467,-500.0,0.00024657,2]
[391757980,1760784642477,-500.0,0.00024657,2]
[391757981,1760784642488,-352.28304698,0.00024657,2]
[391757982,1760784642498,-151.0,0.00024657,7]
[391757983,1760784642507,-151.0,0.00024657,7]
[391757984,1760784642517,-151.0,0.00024657,7]
[391757985,1760784642526,-262.832609,0.00024657,7]
[391757986,1760784642535,-500.0,0.00024657,2]
[391757987,1760784642544,-500.0,0.00024657,2]
[391757988,1760784642554,-161.26756307,0.00024657,2]
[391757989,1760784642563,-374.81936039,0.00024657,2]
[391757990,1760784642572,-500.0,0.00024657,2]
[391757991,1760784642581,-500.0,0.00024657,2]
[391757992,1760784642591,-500.0,0.00024657,2]
[391757993,1760784642600,-500.0,0.00024657,2]
[391757994,1760784642609,-151.0,0.00024657,7]
[391757995,1760784642618,-194.52624133,0.00024657,2]
[391757996,1760784642627,-151.0,0.00024657,7]
[391757997,1760784642637,-151.0,0.00024657,7]
[391757998,1760784642646,-151.0,0.00024657,7]
[391757999,1760784642655,-500.0,0.00024657,2]
[391758000,1760784642664,-500.0,0.00024657,2]
[391758001,1760784642673,-500.0,0.00024657,2]
[391758002,1760784642683,-500.0,0.00024657,2]
[391758003,1760784642692,-500.0,0.00024657,2]
[391758005,1760784642702,-500.0,0.00024657,2]
[391758006,1760784642712,-500.0,0.00024657,2]
[391758007,1760784642721,-1334.64,0.00024657,2]
[391758008,1760784642731,-815.33,0.00024657,2]
[391758009,1760784642740,-500.0,0.00024657,2]
[391758010,1760784642750,-500.0,0.00024657,2]
[391758011,1760784642759,-500.0,0.00024657,2]
[391758012,1760784642768,-500.0,0.00024657,2]
[391758013,1760784642778,-500.0,0.00024657,2]
[391758014,1760784642787,-601.68406086,0.00024657,2]
[391758015,1760784642797,-381.7383947,0.00024657,2]
[391758017,1760784642806,-632.1,0.00024657,2]
[391758019,1760784642815,-500.0,0.00024657,2]
[391758021,1760784642824,-500.0,0.00024657,2]
[391758023,1760784642834,-500.0,0.00024657,2]
[391758024,1760784642843,-500.0,0.00024657,2]
[391758025,1760784642852,-313.86401623,0.00024657,2]
[391758026,1760784642861,-500.0,0.00024657,2]
[391758027,1760784642870,-668.7,0.00024657,2]
[391758028,1760784642879,-500.0,0.00024657,2]
[391758029,1760784642888,-252.78295918,0.00024657,2]
[391758030,1760784642898,-515.89371218,0.00024657,2]
[391758031,1760784642908,-530.99,0.00024657,2]
[391758032,1760784642919,-500.0,0.00024657,2]
[391758033,1760784642929,-423.24106292,0.00024657,2]
[391758034,1760784642939,-500.0,0.00024657,2]
[391758035,1760784642950,-500.0,0.00024657,2]
[391758036,1760784642960,-500.0,0.00024657,2]
[391758037,1760784642970,-151.0,0.00024657,7]
[391758038,1760784642979,-1528.81,0.00024657,2]
[391758039,1760784642988,-500.0,0.00024657,2]
[391758040,1760784642998,-500.0,0.00024657,2]
[391758041,1760784643008,-500.0,0.00024657,2]
[391758042,1760784643018,-1433.54,0.00024657,2]
[391758043,1760784643027,-500.0,0.00024657,2]
[391758044,1760784643037,-2502.4,0.00024657,2]
[391758045,1760784643046,-500.0,0.00024657,2]
[391758046,1760784643056,-500.0,0.00024657,2]
[391758047,1760784643065,-876.44,0.00024657,2]
[391758048,1760784643075,-612.93603313,0.00024657,2]
[391758049,1760784643085,-1166.89,0.00024657,2]
[391758050,1760784643094,-500.0,0.00024657,2]
[391758051,1760784643103,-500.0,0.00024657,2]
[391758052,1760784643113,-443.97066858,0.00024657,2]
[391758053,1760784643123,-500.0,0.00024657,2]
[391758054,1760784643132,-500.0,0.00024657,2]
[391758055,1760784643141,-906.48,0.00024657,2]
[391758056,1760784643152,-500.0,0.00024657,2]
[391758057,1760784643162,-500.0,0.00024657,2]
[391758058,1760784643171,-500.0,0.00024657,2]
[391758059,1760784643181,-231.230103,0.00024657,2]
[391758060,1760784643191,-1135.09,0.00024657,2]
[391758061,1760784643200,-500.0,0.00024657,2]
[391758062,1760784643211,-500.0,0.00024657,2]
[391758063,1760784643220,-500.0,0.00024657,2]
[391758064,1760784643230,-1039.61,0.00024657,2]
[391758065,1760784643239,-603.49,0.00024657,2]
[391758066,1760784643248,-484.08563972,0.00024657,2]
[391758067,1760784643259,-500.0,0.00024657,2]
[391758068,1760784643271,-500.0,0.00024657,2]
[391758069,1760784643281,-500.0,0.00024657,2]
[391758070,1760784643290,-1232.05,0.00024657,2]
[391758071,1760784643300,-642.81394163,0.00024657,2]
[391758072,1760784643311,-500.0,0.00024657,2]
[391758073,1760784643321,-500.0,0.00024657,2]
[391758074,1760784643331,-505.32763325,0.00024657,2]
[391758075,1760784643344,-1146.28,0.00024657,2]
[391758076,1760784643355,-500.0,0.00024657,2]
[391758077,1760784643364,-500.0,0.00024657,2]
[391758078,1760784643375,-1853.53,0.00024657,2]
[391758079,1760784643385,-923.01,0.00024657,2]
[391758080,1760784643396,-896.03,0.00024657,2]
[391758081,1760784643406,-500.0,0.00024657,2]
[391758082,1760784643415,-212.90707932,0.00024657,2]
[391758083,1760784643424,-500.0,0.00024657,2]
[391758084,1760784643434,-151.0,0.00024657,2]
[391758085,1760784643443,-1482.0,0.00024657,2]
[391758086,1760784643452,-500.0,0.00024657,2]
[391758087,1760784643462,-1651.71,0.00024657,2]
[391758088,1760784643472,-500.0,0.00024657,2]
[391758089,1760784643481,-500.0,0.00024657,2]
[391758090,1760784643490,-500.0,0.00024657,2]
[391758091,1760784643499,-375.174632,0.00024657,2]
[391758092,1760784643509,-500.0,0.00024657,2]
[391758093,1760784643518,-500.0,0.00024657,2]
[391758094,1760784643527,-500.0,0.00024657,2]
[391758095,1760784643536,-500.0,0.00024657,2]
[391758096,1760784643545,-394.38154538,0.00024657,2]
[391758097,1760784643555,-500.0,0.00024657,2]
[391758098,1760784643565,-1370.41,0.00024657,2]
[391758099,1760784643574,-500.0,0.00024657,2]
[391758100,1760784643583,-502.85704475,0.00024657,2]
[391758101,1760784643592,-500.0,0.00024657,2]
[391758102,1760784643602,-500.0,0.00024657,2]
[391758103,1760784643611,-450.39198376,0.00024657,2]
[391758104,1760784643620,-1186.42,0.00024657,2]
[391758105,1760784643629,-500.0,0.00024657,2]
[391758106,1760784643638,-500.0,0.00024657,2]
[391758107,1760784643647,-625.14,0.00024657,2]
[391758108,1760784643656,-500.0,0.00024657,2]
[391758109,1760784643665,-2384.24,0.00024657,2]
[391758110,1760784643674,-500.0,0.00024657,2]
[391758111,1760784643683,-1613.51,0.00024657,2]
[391758112,1760784643693,-500.0,0.00024657,2]
[391758113,1760784643702,-215.41505488,0.00024657,2]
[391758114,1760784643712,-500.0,0.00024657,2]
[391758115,1760784643723,-580.0,0.00024657,2]
[391758116,1760784643732,-1094.97,0.00024657,2]
[391758117,1760784643872,-777.82,0.00024657,2]
[391758118,1760784643882,-886.42,0.00024657,2]
[391758119,1760784643891,-500.0,0.00024657,2]
[391758120,1760784643901,-500.0,0.00024657,2]
[391758121,1760784643911,-500.0,0.00024657,2]
[391758122,1760784643920,-500.0,0.00024657,2]
[391758123,1760784643929,-500.0,0.00024657,2]
[391758124,1760784643940,-502.42331847,0.00024657,2]
[391758125,1760784643951,-2555.87,0.00024657,2]
[391758126,1760784643962,-500.0,0.00024657,2]
[391758127,1760784643972,-722.4,0.00024657,2]
[391758128,1760784643982,-500.0,0.00024657,2]
[391758129,1760784643992,-1841.13,0.00024657,2]
[391758130,1760784644002,-500.0,0.00024657,2]
[391758131,1760784644011,-151.0,0.00024657,7]
[391758132,1760784644021,-151.0,0.00024657,7]
[391758133,1760784644030,-2100.82,0.00024657,2]
[391758134,1760784644040,-151.0,0.00024657,7]
[391758135,1760784644050,-457.67135423,0.00024657,2]
[391758136,1760784644060,-151.0,0.00024657,7]
[391758137,1760784644069,-151.0,0.00024657,7]
[391758138,1760784644079,-219.623818,0.00024657,7]
[391758139,1760784644088,-1697.38,0.00024657,2]
[391758140,1760784644098,-500.0,0.00024657,2]
[391758141,1760784644107,-612.272005,0.00024657,7]
[391758142,1760784644117,-612.272005,0.00024657,7]
[391758143,1760784644126,-500.0,0.00024657,2]
[391758144,1760784644136,-612.272005,0.00024657,7]
[391758145,1760784644145,-612.272005,0.00024657,7]
[391758146,1760784644155,-151.0,0.00024657,7]
[391758147,1760784644165,-151.0,0.00024657,7]
[391758148,1760784644175,-612.272005,0.00024657,7]
[391758149,1760784644184,-151.0,0.00024657,7]
[391758150,1760784644194,-612.272005,0.00024657,7]
[391758151,1760784644207,-151.0,0.00024657,7]
[391758152,1760784644221,-612.272005,0.00024657,7]
[391758153,1760784644231,-612.272005,0.00024657,7]
[391758154,1760784644242,-151.0,0.00024657,7]
[391758155,1760784644253,-1021.41,0.00024657,2]
[391758156,1760784644264,-151.0,0.00024657,7]
[391758157,1760784644273,-612.272005,0.00024657,7]
[391758158,1760784644283,-151.0,0.00024657,7]
[391758159,1760784644292,-612.272005,0.00024657,7]
[391758160,1760784644302,-151.0,0.00024657,7]
[391758161,1760784644311,-612.272005,0.00024657,7]
[391758162,1760784644321,-612.272005,0.00024657,7]
[391758163,1760784644330,-151.0,0.00024657,7]
[391758164,1760784644340,-612.272005,0.00024657,7]
[391758165,1760784644349,-151.0,0.00024657,7]
[391758166,1760784644359,-612.272005,0.00024657,7]
[391758167,1760784644368,-253.028116,0.00024657,7]
[391758168,1760784644378,-612.272005,0.00024657,7]
[391758169,1760784644387,-151.0,0.00024657,7]
[391758170,1760784644397,-612.27199523,0.00024657,7]
[391758171,1760784644406,-386.14995092,0.00024657,2]
[391758172,1760784644415,-547.93,0.00024657,2]
[391758173,1760784644425,-245.4237881,0.00024657,2]
[391758174,1760784644434,-150.79373359,0.00024657,2]
[391758175,1760784644443,-1383.41,0.00024657,2]
[391758176,1760784644453,-800.88,0.00024657,2]
[391758177,1760784644462,-1032.62,0.00024657,2]
[391758178,1760784644472,-500.0,0.00024657,2]
[391758179,1760784644481,-500.0,0.00024657,2]
[391758180,1760784644491,-1506.93,0.00024657,2]
[391758181,1760784644500,-500.0,0.00024657,2]
[391758182,1760784644509,-500.0,0.00024657,2]
[391758183,1760784644518,-500.0,0.00024657,2]
[391758184,1760784644529,-500.0,0.00024657,2]
[391758185,1760784644538,-500.0,0.00024657,2]
[391758186,1760784644549,-497.07726695,0.00024657,2]
[391758187,1760784644560,-250.0,0.00024657,2]
[391758188,1760784644569,-250.0,0.00024657,2]
[391758189,1760784644579,-154.73715117,0.00024657,2]
[391758190,1760784644588,-250.0,0.00024657,2]
[391758191,1760784644597,-500.0,0.00024657,2]
[391758192,1760784644606,-250.0,0.00024657,2]
[391758193,1760784644615,-500.0,0.00024657,2]
[391758194,1760784644625,-500.0,0.00024657,2]
[391758195,1760784644634,-625.52,0.00024657,2]
[391758196,1760784644643,-481.04840729,0.00024657,2]
[391758197,1760784644653,-151.0,0.00024657,7]
[391758198,1760784644662,-151.0,0.00024657,7]
[391758199,1760784644671,-151.0,0.00024657,7]
[391758200,1760784644680,-151.0,0.00024657,7]
[391758201,1760784644689,-487.78766327,0.00024657,2]
[391758202,1760784644698,-500.0,0.00024657,2]
[391758203,1760784644707,-555.08,0.00024657,2]
[391758204,1760784644716,-500.0,0.00024657,2]
[391758205,1760784644726,-500.0,0.00024657,2]
[391758206,1760784644735,-500.0,0.00024657,2]
[391758207,1760784644744,-500.0,0.00024657,2]
[391758208,1760784644754,-3115.74,0.00024657,2]
[391758209,1760784644763,-510.13295625,0.00024657,2]
[391758210,1760784644772,-500.0,0.00024657,2]
[391758211,1760784644782,-500.0,0.00024657,2]
[391758212,1760784644791,-500.0,0.00024657,2]
[391758213,1760784644800,-500.0,0.00024657,2]
[391758214,1760784644810,-500.0,0.00024657,2]
[391758215,1760784644819,-1000.0,0.00024657,2]
[391758216,1760784644828,-500.0,0.00024657,2]
[391758217,1760784644837,-500.0,0.00024657,2]
[391758218,1760784644846,-500.0,0.00024657,2]
[391758219,1760784644856,-2129.19,0.00024657,2]
[391758220,1760784644865,-500.0,0.00024657,2]
[391758221,1760784644874,-500.0,0.00024657,2]
[391758222,1760784644885,-500.0,0.00024657,2]
[391758223,1760784644896,-597.62802716,0.00024657,2]
[391758224,1760784644907,-500.0,0.00024657,2]
[391758225,1760784644920,-1694.64,0.00024657,2]
[391758226,1760784644929,-500.0,0.00024657,2]
[391758227,1760784644938,-267.12130933,0.00024657,2]
[391758228,1760784644948,-500.0,0.00024657,2]
[391758229,1760784644959,-1700.65,0.00024657,2]
[391758230,1760784644970,-503.1271781,0.00024657,2]
[391758231,1760784644979,-2325.2,0.00024657,2]
[391758232,1760784644990,-886.8,0.00024657,2]
[391758233,1760784645000,-500.0,0.00024657,2]
[391758234,1760784645011,-500.0,0.00024657,2]
[391758235,1760784645021,-247.56490172,0.00024657,2]
[391758236,1760784645031,-500.0,0.00024657,2]
[391758237,1760784645041,-327.85166681,0.00024657,2]
[391758238,1760784645050,-295.85371913,0.00024657,2]
[391758239,1760784645060,-500.0,0.00024657,2]
[391758240,1760784645069,-481.81365062,0.00024657,2]
[391758241,1760784645079,-500.0,0.00024657,2]
[391758242,1760784645089,-500.0,0.00024657,2]
[391758243,1760784645098,-2336.16,0.00024657,2]
[391758244,1760784645108,-500.0,0.00024657,2]
[391758245,1760784645119,-2122.96,0.00024657,2]
[391758246,1760784645129,-2947.84,0.00024657,2]
[391758247,1760784645138,-500.0,0.00024657,2]
[391758248,1760784645151,-772.18,0.00024657,2]
[391758249,1760784645161,-500.0,0.00024657,2]
[391758250,1760784645171,-500.0,0.00024657,2]
[391758251,1760784645181,-810.9,0.00024657,2]
[391758252,1760784645191,-689.03,0.00024657,2]
[391758253,1760784645200,-500.0,0.00024657,2]
[391758254,1760784645210,-151.0,0.00024657,7]
[391758255,1760784645219,-151.0,0.00024657,7]
[391758256,1760784645229,-500.0,0.00024657,2]
[391758257,1760784645238,-458.69957277,0.00024657,2]
[391758258,1760784645248,-500.0,0.00024657,2]
[391758259,1760784645259,-1624.51,0.00024657,2]
[391758260,1760784645270,-500.0,0.00024657,2]
[391758261,1760784645279,-1106.96,0.00024657,2]
[391758262,1760784645289,-299.57111697,0.00024657,2]
[391758263,1760784645298,-864.94,0.00024657,2]
[391758264,1760784645309,-2072.52,0.00024657,2]
[391758265,1760784645318,-500.0,0.00024657,2]
[391758266,1760784645327,-500.0,0.00024657,2]
[391758267,1760784645338,-500.0,0.00024657,2]
[391758268,1760784645347,-289.7430424,0.00024657,2]
[391758269,1760784645356,-500.0,0.00024657,2]
[391758270,1760784645365,-500.0,0.00024657,2]
[391758271,1760784645375,-903.23,0.00024657,2]
[391758272,1760784645384,-722.19,0.00024657,2]
[391758273,1760784645393,-500.0,0.00024657,2]
[391758274,1760784645402,-500.0,0.00024657,2]
[391758275,1760784645411,-500.0,0.00024657,2]
[391758276,1760784645420,-924.55,0.00024657,2]
[391758277,1760784645431,-500.0,0.00024657,2]
[391758278,1760784645443,-500.0,0.00024657,2]
[391758279,1760784645452,-1839.09,0.00024657,2]
[391758280,1760784645462,-500.0,0.00024657,2]
[391758281,1760784645472,-719.65,0.00024657,2]
[391758282,1760784645482,-632.41414564,0.00024657,2]
[391758283,1760784645493,-500.0,0.00024657,2]
[391758284,1760784645503,-380.0,0.00024658,2]
[391758285,1760784645513,-500.0,0.00024658,2]
[391758286,1760784645523,-500.0,0.00024658,2]
[391758287,1760784645532,-639.148264,0.00024658,2]
[391758288,1760784645542,-500.0,0.00024673,2]
[391758289,1760784645552,-500.0,0.00024673,2]
[391758290,1760784645561,-500.0,0.00024673,2]
[391758291,1760784645571,-500.0,0.00024673,2]
[391758292,1760784645580,-500.0,0.00024673,2]
[391758293,1760784645589,-500.0,0.00024673,2]
[391758294,1760784645599,-500.0,0.00024673,2]
[391758295,1760784645608,-500.0,0.00024673,2]
[391758296,1760784645618,-500.0,0.00024673,2]
[391758297,1760784645628,-500.0,0.00024673,2]
[391758298,1760784645637,-500.0,0.00024673,2]
[391758299,1760784645647,-500.0,0.00024673,2]
[391758300,1760784645656,-505.2485941,0.00024673,2]
[391758301,1760784645665,-500.0,0.00024673,2]
[391758302,1760784645675,-500.0,0.00024673,2]
[391758303,1760784645684,-500.0,0.00024673,2]
[391758304,1760784645693,-500.0,0.00024673,2]
[391758305,1760784645702,-500.0,0.00024673,2]
[391758306,1760784645712,-500.0,0.00024673,2]
[391758307,1760784645723,-500.0,0.00024673,2]
[391758308,1760784645733,-500.0,0.00024673,2]
[391758309,1760784645743,-500.0,0.00024673,2]
[391758310,1760784645752,-500.0,0.00024673,2]
[391758311,1760784645762,-150.0,0.00024673,2]
[391758312,1760784645771,-500.0,0.00024673,2]
[391758313,1760784645781,-500.0,0.00024673,2]
[391758315,1760784645790,-462.17415029,0.00024673,2]
[391758317,1760784645799,-500.0,0.00024673,2]
[391758319,1760784645809,-500.0,0.00024673,2]
[391758321,1760784645818,-500.0,0.00024673,2]
[391758322,1760784645828,-500.0,0.00024673,2]
[391758324,1760784645838,-500.0,0.00024673,2]
[391758326,1760784645847,-500.0,0.00024673,2]
[391758328,1760784645856,-151.0,0.000247,9]
[391758330,1760784645865,-151.0,0.000247,7]
[391758331,1760784645875,-362.510824,0.000247,10]
[391758332,1760784645884,-500.0,0.00024712,2]
[391758333,1760784645893,-155.8684396,0.00024712,2]
[391758334,1760784645902,-175.05955477,0.0002474,14]
[391758335,1760784645912,-168.0,0.00024751,2]
[391758336,1760784645921,-175.154,0.00024755,2]
[391758337,1760784645930,-500.0,0.00024767,2]
[391758338,1760784645940,-300.0,0.0002477,20]
[391758339,1760784645950,-300.0,0.0002477,20]
[391758340,1760784645960,-300.0,0.0002477,20]
[391758341,1760784645972,-300.0,0.0002477,20]
[391758342,1760784645982,-300.0,0.0002477,20]
[391758343,1760784645992,-300.0,0.0002477,20]
[391758344,1760784646002,-300.0,0.0002477,20]
[391758345,1760784646013,-300.0,0.0002477,20]
[391758346,1760784646023,-300.0,0.0002477,20]
[391758347,1760784646034,-300.0,0.0002477,20]
[391758348,1760784646045,-300.0,0.0002477,20]
[391758350,1760784646055,-300.0,0.0002477,20]
[391758351,1760784646065,-300.0,0.0002477,20]
[391758352,1760784646075,-300.0,0.0002477,20]
[391758353,1760784646085,-300.0,0.0002477,20]
[391758354,1760784646095,-500.0,0.00024773,2]
[391758355,1760784646105,-500.8873304,0.00024773,2]
[391758356,1760784646115,-500.0,0.00024773,2]
[391758357,1760784646125,-500.0,0.00024773,2]
[391758358,1760784646134,-506.95259966,0.00024773,2]
[391758359,1760784646144,-500.0,0.00024773,2]
[391758360,1760784646154,-500.0,0.00024773,2]
[391758361,1760784646169,-500.0,0.00024773,2]
[391758362,1760784646179,-500.0,0.00024773,2]
[391758363,1760784646188,-500.0,0.00024773,2]
[391758364,1760784646198,-158.0,0.00024773,2]
[391758365,1760784646207,-158.0,0.00024773,2]
[391758366,1760784646217,-163.0,0.00024773,2]
[391758367,1760784646228,-158.0,0.00024773,2]
[391758368,1760784646238,-236.0,0.00024773,2]
[391758369,1760784646247,-158.2,0.00024773,2]
[391758370,1760784646292,-158.4,0.00024773,2]
[391758371,1760784646302,-158.0,0.00024773,2]
[391758372,1760784646312,-158.4,0.00024773,2]
[391758373,1760784646322,-158.4,0.00024773,2]
[391758374,1760784646331,-158.0,0.00024773,2]
[391758375,1760784646340,-237.76,0.00024773,2]
[391758376,1760784646350,-159.76620504,0.00024773,2]
[391758377,1760784646359,-500.0,0.00024773,2]
[391758378,1760784646368,-158.4,0.00024773,2]
[391758379,1760784646378,-160.0,0.00024773,2]
[391758380,1760784646387,-160.0,0.00024773,2]
[391758381,1760784646397,-188.4,0.00024773,2]
[391758382,1760784646406,-158.0,0.00024773,2]
[391758383,1760784646415,-158.4,0.00024773,2]
[391758384,1760784646424,-158.4,0.00024773,2]
[391758385,1760784646434,-160.0,0.00024773,2]
[391758386,1760784646443,-158.0,0.00024773,2]
[391758387,1760784646452,-170.0,0.00024773,2]
[391758388,1760784646462,-10053.80316414,0.00024774,2]
[391758389,1760784646471,-196.0,0.00024783,2]
[391758390,1760784646480,-854.2589148,0.00024784,2]
[391758391,1760784646490,-990.0,0.000248,2]
[391758392,1760784646499,-990.0,0.000248,3]
[391758393,1760784646508,-26280.86291188,0.000248,7]
[391758394,1760784646518,-160.0,0.000248,7]
[391758395,1760784646527,-402.78104431,0.000248,7]
[391758396,1760784646536,-151.0,0.000248,5]
[391758397,1760784646545,-151.0,0.000248,6]
[391758398,1760784646555,-85524.2228358,0.000248,2]
[391758399,1760784646564,-500.0,0.0002481,2]
[391758400,1760784646573,-300.0,0.0002481,2]
[391758401,1760784646582,-500.0,0.00024821,2]
[391758402,1760784646592,-237.27803975,0.0002485,2]
[391758403,1760784646601,-638.23397939,0.00024873,2]
[391758404,1760784646610,-500.0,0.00024873,2]
[391758405,1760784646619,-508.61918935,0.00024873,2]
[391758406,1760784646628,-500.0,0.00024873,2]
[391758407,1760784646639,-500.0,0.00024873,2]
[391758408,1760784646648,-500.0,0.00024873,2]
[391758409,1760784646658,-500.0,0.00024873,2]
[391758410,1760784646668,-500.0,0.00024873,2]
[391758411,1760784646677,-500.0,0.00024873,2]
[391758412,1760784646686,-500.0,0.00024873,2]
[391758413,1760784646696,-500.0,0.00024873,2]
[391758414,1760784646705,-500.93274379,0.00024873,2]
[391758415,1760784646714,-500.0,0.00024873,2]
[391758416,1760784646725,-500.0,0.00024873,2]
[391758417,1760784646734,-500.0,0.00024873,2]
[391758418,1760784646743,-500.0,0.00024873,2]
[391758419,1760784646753,-596.93575148,0.00024873,2]
[391758420,1760784646762,-500.0,0.00024873,2]
[391758421,1760784646771,-500.0,0.00024873,2]
[391758422,1760784646780,-500.40809648,0.00024873,2]
[391758423,1760784646789,-156.0,0.00024873,2]
[391758424,1760784646798,-158.0,0.00024873,2]
[391758425,1760784646808,-158.4,0.00024873,2]
[391758426,1760784646817,-160.0,0.00024873,2]
[391758427,1760784646827,-158.0,0.00024873,2]
[391758428,1760784646836,-158.4,0.00024873,2]
[391758429,1760784646845,-160.0,0.00024873,2]
[391758430,1760784646854,-160.01765415,0.00024873,2]
[391758431,1760784646863,-158.4,0.00024873,2]
[391758432,1760784646872,-159.0,0.00024873,2]
[391758433,1760784646882,-159.0,0.00024873,2]
[391758434,1760784646891,-500.0,0.00024873,2]
[391758435,1760784646900,-160.0,0.00024873,2]
[391758436,1760784646909,-158.4,0.00024873,2]